bitfinex/quotes_SOLUSD_20251118
["timestamp","ask_amount","ask_price","bid_price","bid_amount"]
[1763464931042,0.1,138.27,138.26,5.52586031]
[1763464932176,0.1,138.27,138.26,4.85586031]
[1763464932549,0.1,138.27,138.26,5.54586031]
[1763464935388,0.1,138.27,138.26,4.85586031]
[1763464936458,0.81,138.27,138.22,0.69]
[1763464936688,0.81,138.27,138.25,4.85586031]
[1763464936975,0.81,138.27,138.26,4.85586031]
[1763464937546,0.81,138.27,138.25,22.97682031]
[1763464939676,0.81,138.27,138.26,4.85586031]
[1763464939857,0.1,138.27,138.26,4.85586031]
[1763464940687,0.1,138.27,138.26,5.51586031]
[1763464941251,0.1,138.27,138.26,0.66]
[1763464941461,0.1,138.27,138.26,5.51586031]
[1763464943876,0.1,138.27,138.26,4.85586031]
[1763464945881,0.1,138.27,138.26,5.51586031]
[1763464947280,0.1,138.27,138.26,4.85586031]
[1763464948260,0.1,138.27,138.26,5.51586031]
[1763464949784,0.2,138.28,138.26,5.51586031]
[1763464949987,0.2,138.28,138.27,27.93682031]
[1763464951959,0.1,138.29,138.27,90.93682031]
[1763464952161,0.1,138.29,138.28,5.51586031]
[1763464952366,0.1,138.29,138.28,68.51586031]
[1763464953305,0.1,138.3,138.28,68.51586031]
[1763464953516,0.89,138.36,138.35,4.85586031]
[1763464953806,0.89,138.36,138.35,22.97682031]
[1763464953807,0.2,138.36,138.35,22.97682031]
[1763464954096,0.2,138.36,138.35,27.27682031]
[1763464954269,0.2,138.36,138.35,27.93682031]
[1763464955073,0.2,138.36,138.35,27.27682031]
[1763464956291,0.89,138.36,138.35,9.15586031]
[1763464956493,0.89,138.36,138.34,4.85586031]
[1763464956697,0.69,138.35,138.34,4.85586031]
[1763464957306,0.2,138.36,138.35,18.12096]
[1763464957464,0.2,138.36,138.35,22.97682031]
[1763464958286,0.2,138.36,138.35,4.85586031]
[1763464958490,0.2,138.36,138.35,22.97682031]
[1763464960491,0.2,138.36,138.35,23.63682031]
[1763464960666,0.2,138.36,138.35,27.93682031]
[1763464961518,0.2,138.37,138.35,27.93682031]
[1763464961685,0.2,138.38,138.37,18.12096]
[1763464962006,0.2,138.38,138.37,27.93682031]
[1763464964286,0.2,138.38,138.37,32.79268062]
[1763464964598,0.1,138.39,138.37,32.79268062]
[1763464964769,0.1,138.39,138.38,10.43172062]
[1763464964974,0.1,138.39,138.38,5.57586031]
[1763464965296,0.1,138.39,138.38,4.85586031]
[1763464965491,0.1,138.39,138.38,22.97682031]
[1763464966779,0.1,138.39,138.38,21.21911809]
[1763464967302,0.1,138.39,138.38,3.09815809]
[1763464967492,0.79,138.39,138.38,3.09815809]
[1763464968074,0.1,138.39,138.38,3.09815809]
[1763464968276,0.1,138.39,138.38,21.21911809]
[1763464968989,0.1,138.39,138.38,3.81815809]
[1763464969382,0.1,138.39,138.38,3.09815809]
[1763464972377,0.1,138.39,138.38,3.81815809]
[1763464977009,0.79,138.39,138.37,4.3]
[1763464977181,0.1,138.39,138.38,3.09815809]
[1763464977689,0.79,138.39,138.33,0.72]
[1763464977894,0.1,138.39,138.38,3.09815809]
[1763464978782,0.1,138.39,138.38,3.81815809]
[1763464979276,0.1,138.39,138.38,6.91631618]
[1763464979693,0.1,138.39,138.38,3.81815809]
[1763464982989,0.1,138.39,138.38,6.91631618]
[1763464983193,0.1,138.41,138.4,18.12096]
[1763464983393,0.1,138.43,138.4,26.24166144]
[1763464983606,0.1,138.44,138.42,21.21911809]
[1763464983786,0.1,138.52,138.45,24.31727618]
[1763464984115,0.79,138.52,138.45,34.33175045]
[1763464984417,0.79,138.52,138.51,3.09815809]
[1763464984787,0.79,138.52,138.44,0.72]
[1763464984990,12.88698578,138.51,138.46,21.21911809]
[1763464985193,12.88698578,138.51,138.46,18.12096]
[1763464985194,9.78882769,138.51,138.46,18.12096]
[1763464985390,0.69,138.5,138.48,3.09815809]
[1763464985592,0.69,138.5,138.46,18.12096]
[1763464985929,0.69,138.5,138.46,21.21911809]
[1763464985930,9.78882769,138.49,138.46,21.21911809]
[1763464986297,0.69,138.48,138.47,3.09815809]
[1763464986814,0.79,138.52,138.48,18.12096]
[1763464987000,0.69,138.51,138.5,3.09815809]
[1763464987199,0.79,138.52,138.5,3.09815809]
[1763464987515,0.79,138.52,138.51,3.09815809]
[1763464989621,0.1,138.52,138.51,3.09815809]
[1763464990211,0.1,138.52,138.51,18.12096]
[1763464990412,0.1,138.52,138.51,21.21911809]
[1763464992005,0.1,138.52,138.51,18.12096]
[1763464992398,0.1,138.52,138.51,3.09815809]
[1763464992723,0.1,138.52,138.51,21.21911809]
[1763464993024,0.1,138.52,138.51,18.12096]
[1763464993235,0.1,138.52,138.51,21.21911809]
[1763464997042,0.1,138.52,138.51,18.12096]
[1763464998013,0.1,138.52,138.51,21.21911809]
[1763464999020,0.1,138.52,138.51,18.12096]
[1763464999216,0.1,138.52,138.51,21.21911809]
[1763464999440,0.1,138.52,138.51,18.12096]
[1763464999616,0.1,138.52,138.51,21.21911809]
[1763465001226,0.1,138.52,138.51,18.12096]
[1763465001411,0.1,138.52,138.51,21.21911809]
[1763465002236,0.1,138.52,138.51,17.25796]
[1763465003522,0.75,138.52,138.51,17.25796]
[1763465003741,0.1,138.52,138.51,17.25796]
[1763465004046,0.1,138.52,138.49,3.09815809]
[1763465004047,0.75,138.52,138.49,3.09815809]
[1763465004822,0.75,138.52,138.48,4.3]
[1763465005225,0.75,138.52,138.48,7.39815809]
[1763465005566,0.75,138.52,138.45,18.12096]
[1763465005717,0.75,138.52,138.46,4.3]
[1763465005718,12.88698578,138.51,138.46,4.3]
[1763465005914,12.88698578,138.51,138.45,3.09815809]
[1763465006116,0.75,138.52,138.45,3.09815809]
[1763465006117,3.74815809,138.5,138.45,4.3]
[1763465006313,3.74815809,138.5,138.45,22.42096]
[1763465006522,0.65,138.49,138.45,22.42096]
[1763465006927,0.65,138.49,138.45,4.3]
[1763465007328,0.65,138.49,138.45,7.39815809]
[1763465007528,0.65,138.49,138.45,4.3]
[1763465007745,9.78882769,138.48,138.45,4.3]
[1763465007930,9.78882769,138.48,138.44,0.7]
[1763465008127,0.65,138.49,138.45,3.09815809]
[1763465008336,9.78882769,138.5,138.47,3.09815809]
[1763465008526,10.43882769,138.5,138.47,3.09815809]
[1763465008721,0.65,138.5,138.48,3.09815809]
[1763465010225,5.05,138.52,138.49,3.09815809]
[1763465010437,5.05,138.52,138.5,3.09815809]
[1763465010438,0.65,138.51,138.5,3.09815809]
[1763465011033,0.1,138.52,138.5,3.09815809]
[1763465011231,0.1,138.52,138.51,3.09815809]
[1763465011925,0.75,138.52,138.51,3.09815809]
[1763465012339,0.1,138.52,138.51,3.09815809]
[1763465013534,0.75,138.52,138.5,4.3]
[1763465013732,0.75,138.52,138.49,21.21911809]
[1763465013934,0.75,138.52,138.49,3.09815809]
[1763465014470,0.75,138.52,138.48,7.39815809]
[1763465014471,9.78882769,138.51,138.48,7.39815809]
[1763465014653,9.78882769,138.51,138.47,3.09815809]
[1763465014836,9.78882769,138.49,138.43,21.98242934]
[1763465015038,3.09815809,138.48,138.43,3.09815809]
[1763465015249,3.74815809,138.48,138.43,3.09815809]
[1763465015431,0.65,138.47,138.43,3.09815809]
[1763465016431,0.65,138.47,138.42,4.3]
[1763465016750,9.78882769,138.46,138.43,3.09815809]
[1763465017058,0.65,138.45,138.43,3.09815809]
[1763465018047,0.65,138.45,138.42,7.39815809]
[1763465019134,3.09815809,138.48,138.43,3.09815809]
[1763465019344,3.09815809,138.48,138.42,5.0]
[1763465019345,9.78882769,138.47,138.44,3.09815809]
[1763465019741,22.42096,138.5,138.45,3.09815809]
[1763465019742,7.39815809,138.5,138.45,3.09815809]
[1763465019942,0.65,138.49,138.46,3.09815809]
[1763465020549,0.65,138.49,138.45,3.09815809]
[1763465020750,3.74815809,138.49,138.44,3.09815809]
[1763465021060,0.65,138.49,138.45,3.09815809]
[1763465021248,0.65,138.48,138.45,3.09815809]
[1763465021656,4.3,138.5,138.46,3.79815809]
[1763465021842,4.3,138.5,138.47,3.09815809]
[1763465022035,4.98,138.5,138.47,3.09815809]
[1763465022638,0.68,138.49,138.47,3.09815809]
[1763465023498,0.68,138.49,138.46,3.09815809]
[1763465025449,0.68,138.49,138.47,3.09815809]
[1763465025980,9.78882769,138.51,138.47,3.77815809]
[1763465026264,10.46882769,138.51,138.48,3.09815809]
[1763465026473,9.78882769,138.51,138.48,3.77815809]
[1763465026666,9.78882769,138.51,138.49,3.09815809]
[1763465026965,0.68,138.51,138.48,3.09815809]
[1763465028072,0.68,138.51,138.46,0.68]
[1763465028272,3.77815809,138.51,138.46,3.09815809]
[1763465028677,0.68,138.5,138.46,3.09815809]
[1763465028882,0.68,138.5,138.46,4.83620399]
[1763465029382,5.51620399,138.5,138.44,4.3]
[1763465029562,4.83620399,138.49,138.44,9.13620399]
[1763465029769,0.68,138.48,138.44,9.13620399]
[1763465030275,0.68,138.48,138.45,4.83620399]
[1763465030879,0.68,138.48,138.44,4.3]
[1763465031064,0.68,138.48,138.44,9.81620399]
[1763465031263,0.68,138.48,138.45,4.83620399]
[1763465031470,9.78882769,138.49,138.46,5.51620399]
[1763465031856,0.68,138.49,138.46,5.51620399]
[1763465032176,15.30503168,138.51,138.46,5.51620399]
[1763465032356,9.78882769,138.49,138.46,5.51620399]
[1763465032558,0.1,138.52,138.48,4.83620399]
[1763465032756,0.68,138.51,138.48,4.83620399]
[1763465033075,0.68,138.51,138.46,9.13620399]
[1763465033268,0.68,138.51,138.44,0.68]
[1763465033269,14.62503168,138.5,138.44,4.83620399]
[1763465033458,4.83620399,138.49,138.44,4.83620399]
[1763465033656,5.51620399,138.49,138.44,4.83620399]
[1763465033852,5.51620399,138.48,138.43,23.63716399]
[1763465034268,4.83620399,138.49,138.44,4.83620399]
[1763465034468,9.78882769,138.5,138.46,4.83620399]
[1763465034686,10.46882769,138.5,138.46,4.83620399]
[1763465034888,0.68,138.49,138.46,4.83620399]
[1763465035062,4.98,138.51,138.47,5.51620399]
[1763465035370,0.68,138.5,138.46,4.83620399]
[1763465035572,0.68,138.5,138.46,5.51620399]
[1763465036761,0.68,138.5,138.47,4.83620399]
[1763465037085,19.70503168,138.52,138.47,5.51620399]
[1763465037385,10.56882769,138.52,138.48,5.51620399]
[1763465037885,0.68,138.51,138.48,5.51620399]
[1763465038264,0.1,138.52,138.48,5.51620399]
[1763465038598,0.1,138.52,138.49,0.68]
[1763465038777,0.1,138.52,138.49,5.51620399]
[1763465039087,0.78,138.52,138.49,5.51620399]
[1763465039465,0.78,138.52,138.49,4.83620399]
[1763465039664,0.1,138.52,138.49,4.83620399]
[1763465039881,0.1,138.52,138.49,5.51620399]
[1763465040889,0.1,138.52,138.48,22.42096]
[1763465041065,0.1,138.52,138.45,18.12096]
[1763465041066,14.62503168,138.51,138.45,4.83620399]
[1763465041267,9.78882769,138.49,138.44,0.68]
[1763465041460,14.62503168,138.49,138.44,4.83620399]
[1763465041661,14.62503168,138.49,138.4,21.84120692]
[1763465041662,4.83620399,138.46,138.4,0.68]
[1763465041890,4.3,138.46,138.43,4.83620399]
[1763465042192,0.68,138.48,138.44,4.83620399]
[1763465042388,4.3,138.49,138.45,4.83620399]
[1763465042590,9.78882769,138.49,138.45,5.51620399]
[1763465042893,10.46882769,138.49,138.45,4.83620399]
[1763465043869,10.46882769,138.49,138.44,0.68]
[1763465043870,9.78882769,138.49,138.46,0.68]
[1763465044087,0.1,138.52,138.46,9.81620399]
[1763465044296,0.68,138.51,138.48,4.83620399]
[1763465044467,0.68,138.51,138.49,4.83620399]
[1763465044981,0.68,138.51,138.49,12.82565703]
[1763465045187,0.1,138.52,138.49,12.82565703]
[1763465045367,0.78,138.52,138.49,12.82565703]
[1763465045871,10.56882769,138.52,138.49,12.82565703]
[1763465046285,0.68,138.51,138.48,12.82565703]
[1763465046790,10.56882769,138.52,138.49,12.82565703]
[1763465046992,0.1,138.52,138.51,12.82565703]
[1763465048569,0.1,138.52,138.48,4.98]
[1763465048775,0.1,138.52,138.51,12.82565703]
[1763465049677,0.1,138.52,138.51,13.50565703]
[1763465050090,0.1,138.52,138.51,12.82565703]
[1763465050989,0.1,138.52,138.51,13.50565703]
[1763465051575,0.1,138.52,138.51,17.80565703]
[1763465051776,0.1,138.52,138.51,35.92661703]
[1763465052195,0.1,138.52,138.51,23.10096]
[1763465052398,0.1,138.52,138.51,18.12096]
[1763465052602,0.1,138.52,138.49,5.02]
[1763465052897,0.1,138.52,138.5,12.82565703]
[1763465053096,0.81,138.52,138.5,12.82565703]
[1763465053276,0.81,138.52,138.47,5.02]
[1763465053598,0.81,138.52,138.5,12.82565703]
[1763465053979,0.1,138.52,138.51,12.82565703]
[1763465054598,0.81,138.52,138.48,0.72]
[1763465054769,0.81,138.52,138.47,5.02]
[1763465055100,0.81,138.52,138.49,12.82565703]
[1763465055997,9.78882769,138.51,138.46,12.82565703]
[1763465056500,0.71,138.5,138.46,12.82565703]
[1763465057001,0.71,138.5,138.45,12.82565703]
[1763465057196,9.78882769,138.49,138.44,17.12565703]
[1763465057379,0.71,138.48,138.44,17.12565703]
[1763465057585,0.71,138.48,138.44,17.84565703]
[1763465057897,0.71,138.48,138.44,13.54565703]
[1763465058085,0.71,138.48,138.45,12.82565703]
[1763465059009,9.78882769,138.49,138.45,12.82565703]
[1763465059216,9.78882769,138.49,138.42,18.12096]
[1763465059217,9.78882769,138.47,138.42,18.12096]
[1763465059497,9.78882769,138.47,138.39,21.48218464]
[1763465059498,9.78882769,138.47,138.39,0.72]
[1763465059696,9.78882769,138.47,138.35,12.43857114]
[1763465059697,13.53565703,138.46,138.4,12.82565703]
[1763465059913,9.78882769,138.44,138.39,12.82565703]
[1763465060096,14.08882769,138.44,138.4,12.82565703]
[1763465060404,14.78882769,138.44,138.4,12.82565703]
[1763465061091,14.08882769,138.44,138.4,12.82565703]
[1763465061416,14.78882769,138.44,138.4,12.82565703]
[1763465061905,14.78882769,138.44,138.41,12.82565703]
[1763465062289,0.7,138.47,138.43,12.82565703]
[1763465062489,5.0,138.47,138.43,12.82565703]
[1763465062685,5.0,138.47,138.43,13.49565703]
[1763465063098,5.0,138.47,138.43,12.82565703]
[1763465063294,0.7,138.46,138.42,12.82565703]
[1763465063990,0.7,138.46,138.43,12.82565703]
[1763465064203,4.3,138.47,138.43,12.82565703]
[1763465064889,5.0,138.47,138.43,12.82565703]
[1763465065401,9.78882769,138.46,138.44,12.82565703]
[1763465066389,9.78882769,138.46,138.43,12.82565703]
[1763465066586,9.78882769,138.46,138.43,13.49565703]
[1763465067808,9.78882769,138.46,138.44,12.82565703]
[1763465068000,4.3,138.47,138.44,13.49565703]
[1763465068200,4.3,138.47,138.45,12.82565703]
[1763465068407,9.78882769,138.49,138.46,12.82565703]
[1763465068608,10.48882769,138.49,138.45,13.49565703]
[1763465069326,9.78882769,138.47,138.43,12.82565703]
[1763465069689,9.78882769,138.47,138.42,4.97]
[1763465069690,5.0,138.46,138.4,22.42096]
[1763465069910,9.78882769,138.45,138.4,17.12565703]
[1763465070107,10.48882769,138.45,138.4,12.82565703]
[1763465070313,0.7,138.44,138.4,12.82565703]
[1763465070615,0.7,138.44,138.4,13.49565703]
[1763465071907,0.7,138.44,138.41,12.82565703]
[1763465072111,9.78882769,138.45,138.41,12.82565703]
[1763465072413,10.48882769,138.45,138.41,13.49565703]
[1763465072926,4.3,138.45,138.43,12.82565703]
[1763465073517,4.3,138.45,138.42,13.49565703]
[1763465073830,5.0,138.45,138.42,12.82565703]
[1763465074627,0.7,138.47,138.43,13.49565703]
[1763465074798,4.3,138.46,138.42,12.82565703]
[1763465075201,5.0,138.46,138.42,13.49565703]
[1763465075997,0.7,138.45,138.42,12.82565703]
[1763465076724,5.0,138.46,138.42,13.49565703]
[1763465076934,5.0,138.46,138.43,13.49565703]
[1763465076935,4.3,138.46,138.43,13.49565703]
[1763465077506,4.3,138.46,138.43,0.67]
[1763465077819,5.0,138.46,138.42,12.82565703]
[1763465078127,5.0,138.46,138.42,13.49565703]
[1763465078701,5.0,138.46,138.43,12.82565703]
[1763465079024,4.3,138.46,138.43,13.49565703]
[1763465079527,5.0,138.46,138.43,12.82565703]
[1763465080230,4.3,138.46,138.43,12.82565703]
[1763465080405,4.3,138.46,138.43,13.49565703]
[1763465080605,4.3,138.46,138.43,0.67]
[1763465081028,4.3,138.46,138.43,13.49565703]
[1763465081533,4.3,138.46,138.44,13.49565703]
[1763465081834,14.08882769,138.48,138.44,13.49565703]
[1763465082133,14.78882769,138.48,138.44,13.49565703]
[1763465082325,14.78882769,138.48,138.45,12.82565703]
[1763465082530,14.08882769,138.48,138.42,4.3]
[1763465082709,14.79882769,138.48,138.44,12.82565703]
[1763465082909,4.3,138.48,138.45,12.82565703]
[1763465083317,4.3,138.48,138.45,13.50565703]
[1763465084103,5.01,138.48,138.45,13.50565703]
[1763465084530,0.71,138.48,138.45,13.50565703]
[1763465084832,5.01,138.48,138.45,13.50565703]
[1763465085131,5.01,138.48,138.45,12.82565703]
[1763465088225,4.3,138.48,138.45,13.50565703]
[1763465089036,4.3,138.48,138.45,3.77555293]
[1763465089530,0.71,138.47,138.44,3.09555293]
[1763465089738,4.3,138.48,138.44,3.09555293]
[1763465090050,5.01,138.48,138.44,3.77555293]
[1763465090613,0.71,138.47,138.43,3.09555293]
[1763465091125,0.71,138.47,138.43,3.77555293]
[1763465091433,0.71,138.47,138.44,3.09555293]
[1763465091932,0.71,138.47,138.44,3.77555293]
[1763465092099,9.78882769,138.47,138.44,3.77555293]
[1763465092301,10.49882769,138.47,138.44,3.77555293]
[1763465092508,10.49882769,138.47,138.42,0.68]
[1763465092734,10.49882769,138.47,138.43,3.09555293]
[1763465093033,10.49882769,138.47,138.44,3.09555293]
[1763465093328,9.78882769,138.47,138.44,3.09555293]
[1763465093631,9.78882769,138.47,138.44,3.77555293]
[1763465093933,10.49882769,138.47,138.44,3.77555293]
[1763465096539,9.78882769,138.47,138.44,3.77555293]
[1763465097130,4.3,138.48,138.45,3.77555293]
[1763465097515,4.3,138.48,138.46,3.77555293]
[1763465098207,5.01,138.48,138.45,3.09555293]
[1763465098408,0.71,138.47,138.42,0.68]
[1763465098810,9.78882769,138.46,138.39,63.0]
[1763465099036,4.3,138.45,138.38,63.0]
[1763465099215,5.01,138.45,138.4,3.09555293]
[1763465099415,5.01,138.45,138.41,3.09555293]
[1763465099618,4.3,138.45,138.41,3.09555293]
[1763465099816,0.71,138.44,138.4,3.77555293]
[1763465100215,0.71,138.44,138.41,3.09555293]
[1763465100545,0.71,138.44,138.4,0.68]
[1763465100839,4.3,138.45,138.41,3.09555293]
[1763465101024,5.01,138.45,138.41,3.09555293]
[1763465101224,5.01,138.45,138.41,3.77555293]
[1763465101441,0.71,138.44,138.41,3.09555293]
[1763465101617,10.49882769,138.44,138.4,3.09555293]
[1763465102145,10.49882769,138.44,138.4,3.77555293]
[1763465102508,10.49882769,138.44,138.41,3.09555293]
[1763465102728,9.78882769,138.44,138.41,3.77555293]
[1763465102941,4.3,138.45,138.43,3.09555293]
[1763465103115,9.78882769,138.46,138.44,3.09555293]
[1763465103313,4.3,138.47,138.45,3.09555293]
[1763465103517,18.12096,138.5,138.46,3.09555293]
[1763465103817,14.08882769,138.49,138.46,3.77555293]
[1763465104218,14.79882769,138.49,138.46,3.09555293]
[1763465104715,10.49882769,138.48,138.44,3.09555293]
[1763465104949,10.49882769,138.48,138.44,0.68]
[1763465105136,10.49882769,138.48,138.44,3.77555293]
[1763465105736,0.71,138.47,138.43,3.09555293]
[1763465106058,14.08882769,138.46,138.42,3.77555293]
[1763465106254,14.79882769,138.46,138.42,3.77555293]
[1763465106421,14.08882769,138.46,138.43,3.77555293]
[1763465107846,14.08882769,138.46,138.43,0.68]
[1763465108021,14.08882769,138.46,138.43,3.77555293]
[1763465108842,14.08882769,138.46,138.44,3.09555293]
[1763465109338,4.3,138.46,138.44,3.09555293]
[1763465109645,14.08882769,138.48,138.45,3.77555293]
[1763465109832,14.08882769,138.48,138.46,3.09555293]
[1763465110144,14.08882769,138.48,138.45,3.77555293]
[1763465110538,14.79882769,138.48,138.45,3.77555293]
[1763465110721,14.79882769,138.48,138.4,81.12096]
[1763465110722,0.71,138.47,138.44,3.09555293]
[1763465110920,14.08882769,138.48,138.44,3.09555293]
[1763465111224,14.79882769,138.48,138.44,3.77555293]
[1763465111548,14.08882769,138.48,138.44,3.77555293]
[1763465111720,14.79882769,138.48,138.44,3.77555293]
[1763465113427,0.69,138.47,138.42,0.69]
[1763465113750,9.78882769,138.46,138.43,3.09555293]
[1763465113952,4.3,138.45,138.41,3.09555293]
[1763465114128,4.99,138.45,138.41,3.09555293]
[1763465114327,0.69,138.44,138.4,0.69]
[1763465114522,4.3,138.45,138.42,3.09555293]
[1763465114744,266.2,138.51,138.44,3.09555293]
[1763465114745,4.3,138.47,138.44,3.09555293]
[1763465114936,4.3,138.47,138.45,3.09555293]
[1763465114937,14.08882769,138.47,138.45,3.09555293]
[1763465115335,14.08882769,138.47,138.44,3.09555293]
[1763465115539,9.78882769,138.49,138.45,3.09555293]
[1763465115828,14.08882769,138.49,138.45,3.09555293]
[1763465116137,14.08882769,138.49,138.46,0.69]
[1763465116343,14.77882769,138.49,138.45,0.69]
[1763465116547,14.77882769,138.49,138.45,3.09555293]
[1763465116749,14.77882769,138.49,138.45,3.78555293]
[1763465117150,14.08882769,138.49,138.45,3.09555293]
[1763465117329,14.77882769,138.49,138.45,3.78555293]
[1763465118649,14.77882769,138.49,138.46,0.69]
[1763465118850,14.08882769,138.49,138.47,3.09555293]
[1763465119232,14.08882769,138.49,138.46,3.78555293]
[1763465119832,14.75882769,138.49,138.45,0.69]
[1763465120060,14.08882769,138.49,138.46,3.09555293]
[1763465120229,14.08882769,138.49,138.42,22.42096]
[1763465120434,14.08882769,138.49,138.46,3.09555293]
[1763465120952,4.3,138.49,138.47,3.78555293]
[1763465121152,9.78882769,138.51,138.48,3.09555293]
[1763465121355,14.08882769,138.51,138.48,3.09555293]
[1763465121542,14.08882769,138.51,138.48,0.69]
[1763465121745,14.08882769,138.51,138.48,3.78555293]
[1763465122144,0.1,138.52,138.49,0.69]
[1763465122358,0.1,138.52,138.5,3.09555293]
[1763465122656,0.1,138.52,138.5,3.78555293]
[1763465122848,0.1,138.52,138.51,3.09555293]
[1763465124559,0.1,138.52,138.49,0.69]
[1763465124762,0.1,138.52,138.47,0.69]
[1763465126064,0.77,138.52,138.49,3.09555293]
[1763465126239,9.88882769,138.52,138.49,0.69]
[1763465126437,10.55882769,138.52,138.48,0.69]
[1763465126638,10.55882769,138.52,138.49,3.09555293]
[1763465126861,0.67,138.51,138.48,3.78555293]
[1763465127164,0.67,138.51,138.47,3.09555293]
[1763465127544,0.67,138.51,138.47,3.78555293]
[1763465127762,9.78882769,138.5,138.47,3.09555293]
[1763465128143,4.97,138.5,138.47,3.09555293]
[1763465128465,4.3,138.5,138.48,3.09555293]
[1763465128662,14.75882769,138.5,138.46,0.69]
[1763465128852,14.75882769,138.5,138.47,3.09555293]
[1763465129047,14.75882769,138.5,138.46,0.69]
[1763465129351,14.75882769,138.5,138.47,3.09555293]
[1763465129553,14.08882769,138.5,138.47,3.09555293]
[1763465129757,0.67,138.49,138.47,3.09555293]
[1763465130265,14.75882769,138.5,138.47,3.09555293]
[1763465130446,10.45882769,138.49,138.46,3.09555293]
[1763465130962,0.67,138.48,138.45,21.21651293]
[1763465131167,0.67,138.48,138.45,21.90651293]
[1763465131680,9.78882769,138.48,138.45,3.78555293]
[1763465132358,0.67,138.47,138.44,3.09555293]
[1763465132561,0.67,138.47,138.43,0.69]
[1763465132562,9.78882769,138.46,138.43,3.09555293]
[1763465132770,12.88438062,138.46,138.41,3.09555293]
[1763465132978,9.78882769,138.44,138.41,18.12096]
[1763465133184,14.08882769,138.44,138.41,18.12096]
[1763465133477,14.75882769,138.44,138.41,18.12096]
[1763465133685,3.76555293,138.43,138.38,8.08555293]
[1763465133860,0.67,138.43,138.39,21.90651293]
[1763465134242,0.67,138.43,138.39,21.21651293]
[1763465134449,0.67,138.43,138.4,0.69]
[1763465134992,0.67,138.43,138.39,3.09555293]
[1763465135180,0.67,138.43,138.39,3.78555293]
[1763465135476,0.67,138.43,138.35,0.2]
[1763465135477,12.88438062,138.4,138.35,0.2]
[1763465135645,12.88438062,138.36,138.35,0.2]
[1763465135847,35.30534062,138.36,138.35,0.2]
[1763465136047,35.97534062,138.36,138.35,0.2]
[1763465136764,40.26776029,138.36,138.35,0.2]
[1763465142579,9.78882769,138.33,138.29,0.2]
[1763465142789,35.29776029,138.3,138.29,0.2]
[1763465143078,14.08882769,138.3,138.29,0.2]
[1763465143288,0.68,138.35,138.29,0.91]
[1763465143453,7.3879726,138.33,138.29,0.91]
[1763465143655,11.6879726,138.33,138.29,0.91]
[1763465143980,12.3679726,138.33,138.29,0.91]
[1763465144184,4.3,138.33,138.3,0.71]
[1763465145272,4.3,138.33,138.3,8.0979726]
[1763465145663,4.3,138.33,138.31,8.0979726]
[1763465145858,22.15680029,138.36,138.31,8.0979726]
[1763465146078,22.15680029,138.36,138.32,0.71]
[1763465147270,9.78882769,138.34,138.3,0.71]
[1763465147483,9.78882769,138.34,138.29,25.14529735]
[1763465147672,4.98,138.36,138.3,7.3879726]
[1763465147986,12.3679726,138.36,138.31,7.3879726]
[1763465148157,17.85680029,138.35,138.3,7.3879726]
[1763465148357,7.3879726,138.34,138.29,7.3879726]
[1763465148882,8.0679726,138.34,138.29,7.3879726]
[1763465149578,8.0679726,138.34,138.3,0.71]
[1763465150869,13.54149251,138.34,138.3,0.71]
[1763465151176,0.68,138.34,138.3,13.57149251]
[1763465151357,9.78882769,138.35,138.31,12.86149251]
[1763465151558,9.78882769,138.35,138.32,0.71]
[1763465151757,17.84149251,138.36,138.32,0.71]
[1763465151958,14.08882769,138.38,138.33,12.86149251]
[1763465152170,0.68,138.39,138.32,0.71]
[1763465152171,9.78882769,138.39,138.35,12.86149251]
[1763465152653,10.46882769,138.39,138.35,13.57149251]
[1763465152858,23.3303202,138.39,138.35,0.71]
[1763465153160,4.3,138.41,138.35,0.71]
[1763465153161,12.86149251,138.4,138.36,0.71]